bitfinex/quotes_ETHUSD_20240811
["timestamp","ask_amount","ask_price","bid_price","bid_amount"]
[1723375470855,2.4185,2658.6,2656.7,2.2963]
[1723375471088,0.55,2658.5,2656.7,2.2963]
[1723375471301,2.4185,2658.3,2656.7,2.2963]
[1723375471581,0.29685,2658.4,2656.7,2.2963]
[1723375471582,4.03005722,2658.2,2656.7,2.2963]
[1723375471913,2.4185,2658.1,2656.7,2.2963]
[1723375472200,0.55,2658.0,2656.7,2.2963]
[1723375472352,3.0,2658.1,2656.8,0.22963]
[1723375472555,3.0,2658.1,2656.3,0.1280467]
[1723375472865,3.0,2658.1,2656.4,0.07527064]
[1723375473067,0.29685,2658.4,2656.5,0.0752697]
[1723375473247,0.29685,2658.4,2656.3,0.1280467]
[1723375473448,0.29685,2658.4,2656.4,0.0634832]
[1723375473652,0.29685,2658.4,2656.3,0.1280467]
[1723375473653,0.84868339,2658.4,2656.3,0.1280467]
[1723375473954,0.36429834,2658.3,2656.4,2.4097832]
[1723375474155,2.4185,2658.2,2656.4,2.4097832]
[1723375474600,0.55,2658.1,2656.4,2.48506563]
[1723375474892,3.0,2658.1,2656.5,0.07527237]
[1723375475089,0.3758,2658.5,2656.5,2.60761023]
[1723375475275,0.3758,2658.7,2656.6,0.06341646]
[1723375475499,0.3758,2658.7,2656.7,2.3463]
[1723375475659,8.0089311,2658.7,2656.8,2.66253249]
[1723375475864,8.0089311,2658.7,2656.9,0.06331637]
[1723375476097,8.0089311,2658.7,2657.1,2.3463]
[1723375476399,2.4185,2658.6,2657.1,2.3463]
[1723375476558,2.4185,2658.6,2657.3,2.3463]
[1723375477089,2.963511,2658.9,2657.5,2.3463]
[1723375477275,2.963511,2658.9,2657.6,0.24094496]
[1723375477276,0.35153444,2658.8,2657.6,0.24094496]
[1723375477474,2.7943,2658.7,2657.7,0.06304957]
[1723375477799,2.4185,2658.7,2657.4,2.3463]
[1723375478013,0.33150454,2658.6,2657.4,2.58093]
[1723375478167,0.545011,2658.8,2657.4,2.58093]
[1723375478370,0.55,2658.7,2657.5,0.06311626]
[1723375478692,0.55,2658.7,2657.4,2.58093]
[1723375478892,0.55,2658.7,2657.5,0.258093]
[1723375479097,2.4185,2658.6,2657.4,2.3463]
[1723375479282,3.0,2658.6,2657.4,2.3463]
[1723375479814,3.0,2658.6,2657.6,2.3463]
[1723375479973,0.545011,2658.8,2657.6,2.3463]
[1723375480172,0.545011,2658.8,2657.7,0.06359955]
[1723375480374,0.545011,2658.8,2657.6,2.3463]
[1723375480773,0.656535,2659.1,2657.7,0.07524915]
[1723375480975,0.656535,2659.1,2657.8,2.3463]
[1723375481197,3.92886424,2659.4,2657.8,2.40986621]
[1723375482007,1.09684439,2659.3,2657.8,2.40986621]
[1723375482403,1.09684439,2659.3,2658.0,2.3463]
[1723375482698,1.09684439,2659.3,2657.4,0.1]
[1723375482699,7.3,2659.7,2658.2,2.3463]
[1723375482898,7.3,2659.7,2658.1,0.07522816]
[1723375482899,7.3,2659.7,2658.3,2.66367409]
[1723375483142,7.3,2659.7,2658.3,2.72711768]
[1723375483352,3.18276195,2660.1,2658.3,2.72711768]
[1723375483741,3.18276195,2660.1,2658.5,2.3463]
[1723375483922,3.18276195,2660.1,2658.7,2.3463]
[1723375484359,3.18276195,2660.1,2658.9,2.3463]
[1723375484761,3.18276195,2660.1,2659.0,0.06321038]
[1723375484968,3.18276195,2660.1,2659.1,2.42148765]
[1723375485121,3.18276195,2660.1,2659.3,2.3463]
[1723375485457,3.79486854,2660.3,2659.5,2.3463]
[1723375485652,3.79486854,2660.3,2659.7,2.3199]
[1723375485884,3.79486854,2660.3,2659.6,0.07518431]
[1723375485885,0.3758,2661.0,2659.8,2.39507996]
[1723375486016,0.545011,2661.4,2659.8,2.45802397]
[1723375486365,0.2818411,2661.3,2659.9,2.5657024]
[1723375486662,0.545011,2661.4,2660.0,2.39507133]
[1723375487233,0.55183339,2661.6,2660.1,2.38274416]
[1723375487234,1.09684439,2661.6,2660.1,2.38274416]
[1723375487465,1.09684439,2661.6,2660.3,2.3199]
[1723375487668,0.545011,2661.6,2660.3,2.3199]
[1723375487841,0.545011,2661.6,2660.4,0.06274433]
[1723375488049,1.09684439,2661.6,2660.4,0.06274433]
[1723375488230,0.545011,2661.6,2660.4,0.06274433]
[1723375488425,0.545011,2661.6,2660.5,2.3199]
[1723375488877,0.545011,2661.6,2660.6,0.06267779]
[1723375489032,0.545011,2661.6,2660.7,2.3199]
[1723375489364,0.58911276,2662.0,2660.9,2.3199]
[1723375489553,0.545011,2662.4,2661.0,0.07515233]
[1723375489764,0.545011,2662.4,2661.1,2.3199]
[1723375490134,0.545011,2662.4,2661.2,0.06247824]
[1723375490329,0.545011,2662.4,2661.3,2.3199]
[1723375490559,0.545011,2662.4,2661.2,0.13762517]
[1723375490560,9.5734,2663.0,2661.5,2.3199]
[1723375490746,0.545011,2662.8,2661.6,0.23199]
[1723375490972,0.545011,2662.8,2661.5,2.3199]
[1723375491172,12.19,2663.5,2661.6,2.3950355]
[1723375491483,0.545011,2663.0,2661.6,2.3950355]
[1723375491682,0.58872234,2663.5,2661.6,2.63453905]
[1723375491991,0.58872234,2663.5,2661.7,0.06231201]
[1723375491992,1.13373334,2663.5,2661.7,0.06231201]
[1723375492143,0.88572433,2663.4,2661.8,2.3199]
[1723375492349,0.88572433,2663.4,2660.8,3.1]
[1723375492350,0.88572433,2663.4,2662.0,2.3199]
[1723375492584,7.3,2663.7,2662.2,2.3199]
[1723375492898,0.545011,2663.6,2662.3,0.07511341]
[1723375493062,0.545011,2663.6,2662.3,0.13572446]
[1723375493388,0.545011,2663.8,2662.3,0.06061105]
[1723375493546,0.55183339,2663.5,2662.3,0.06061105]
[1723375493746,0.545011,2663.4,2662.2,2.3199]
[1723375495188,2.8234,2663.3,2662.2,2.3199]
[1723375495352,3.39202444,2663.2,2662.2,2.3199]
[1723375495750,3.93703544,2663.2,2662.2,2.3199]
[1723375496183,1.64684439,2663.1,2661.8,2.3199]
[1723375496694,1.64684439,2663.1,2661.9,0.06074397]
[1723375496880,0.50388688,2663.0,2661.9,0.06074397]
[1723375497084,1.095011,2662.9,2661.9,0.06074397]
[1723375497392,1.05572027,2663.0,2661.9,0.06074397]
[1723375497393,0.50388688,2663.0,2661.9,0.06074397]
[1723375497767,0.50388688,2663.0,2661.8,2.3199]
[1723375498116,1.04889788,2663.0,2661.8,2.3199]
[1723375498557,1.64684439,2662.9,2661.8,2.3199]
[1723375498758,0.21507313,2662.8,2661.8,2.3199]
[1723375499691,0.50388688,2663.0,2661.8,2.3199]
[1723375500470,0.50388688,2663.0,2659.3,1.5]
[1723375500471,2.2734,2662.8,2661.4,2.3199]
[1723375500666,1.09684439,2662.7,2661.4,2.3199]
[1723375500999,1.09684439,2662.7,2661.5,0.0591009]
[1723375501000,0.55,2662.6,2661.5,0.0591009]
[1723375501165,1.18203544,2662.6,2661.5,0.0591009]
[1723375501688,0.55,2662.5,2661.0,2.3199]
[1723375501909,1.095011,2662.5,2661.1,0.05931798]
[1723375502112,2.2734,2662.4,2661.1,0.05931798]
[1723375502309,0.3368411,2662.3,2661.1,0.05931798]
[1723375502798,0.55,2662.2,2661.1,0.05931798]
[1723375503019,1.64684439,2662.2,2659.5,2.3199]
[1723375503311,2.818411,2662.1,2659.9,2.3199]
[1723375503618,3.55,2662.0,2660.1,2.3199]
[1723375503906,3.55,2662.0,2659.4,0.1]
[1723375503907,2.2734,2661.6,2660.2,0.05971243]
[1723375504105,1.64684439,2661.5,2660.2,0.05971243]
[1723375504476,4.095011,2661.5,2659.7,2.3199]
[1723375504911,4.64684439,2661.5,2659.7,2.3199]
[1723375505211,1.24385783,2661.4,2659.7,2.3199]
[1723375505379,2.2734,2661.2,2659.7,2.3199]
[1723375505580,3.0,2661.2,2659.9,2.3199]
[1723375506109,0.69202444,2661.4,2660.0,0.05785233]
[1723375506312,2.86400244,2661.3,2660.0,0.05785233]
[1723375506473,3.0,2661.2,2659.9,2.3199]
[1723375506876,3.0,2661.2,2658.8,3.0]
[1723375506877,3.0,2661.2,2658.9,2.2986]
[1723375507074,0.55,2661.1,2659.0,0.05818527]
[1723375507312,1.13640024,2661.1,2659.0,0.2938638]
[1723375507614,2.4948,2661.0,2659.1,2.2986]
[1723375507924,2.4948,2660.9,2658.7,2.2986]
[1723375508087,3.589811,2660.9,2658.7,2.2986]
[1723375508292,2.4948,2660.7,2658.7,2.2986]
[1723375508491,1.29675544,2660.8,2658.7,2.2986]
[1723375508492,3.0448,2660.6,2658.7,2.2986]
[1723375509008,2.4948,2660.4,2658.7,2.2986]
[1723375509179,0.55,2660.3,2658.7,2.2986]
[1723375509386,0.30448,2660.2,2658.7,2.2986]
[1723375509578,0.55,2660.1,2658.7,2.2986]
[1723375510726,2.4948,2660.0,2658.2,2.2986]
[1723375510934,0.55,2660.1,2658.2,2.2986]
[1723375510935,2.4948,2659.8,2658.2,2.2986]
[1723375511100,0.30448,2659.7,2658.8,0.05611547]
[1723375511286,0.55,2659.6,2658.2,2.2986]
[1723375513070,0.55,2659.6,2658.3,0.07522411]
[1723375514437,2.4948,2659.5,2657.8,2.2986]
[1723375514644,2.4948,2659.3,2657.8,2.2986]
[1723375514938,5.4948,2659.3,2657.9,0.05641538]
[1723375515140,0.55,2659.2,2657.9,0.05641538]
[1723375515349,0.60448,2659.1,2657.8,2.2986]
[1723375516009,2.4948,2659.0,2656.9,2.2986]
[1723375516210,5.4948,2659.0,2657.9,0.056887]
[1723375516417,0.309928,2658.9,2657.3,5.2986]
[1723375516726,3.309928,2658.9,2657.3,5.2986]
[1723375516931,0.5804728,2658.8,2657.4,0.90186]
[1723375517233,0.5804728,2658.8,2657.4,0.95896126]
[1723375518907,2.4948,2658.7,2657.4,0.95896126]
[1723375519117,5.4948,2658.7,2657.4,0.95896126]
[1723375519337,0.60752728,2658.6,2657.4,0.95896126]
[1723375519537,0.60752728,2658.6,2657.4,1.03420494]
[1723375519705,3.0,2658.6,2657.4,1.03420494]
[1723375520351,2.4948,2658.7,2657.4,1.03420494]
[1723375520635,0.55,2659.2,2657.4,1.03420494]
[1723375520636,3.0,2659.1,2657.5,2.2986]
[1723375520835,2.4948,2659.2,2657.5,2.2986]
[1723375521045,2.4948,2659.2,2657.6,0.05778058]
[1723375521232,2.74428,2659.2,2657.7,2.2986]
[1723375521539,2.74428,2659.2,2657.7,2.35622]
[1723375523145,3.0,2659.1,2657.7,2.35622]
[1723375523447,3.0,2659.1,2657.8,0.17522686]
[1723375523616,2.4948,2659.2,2657.9,2.2986]
[1723375523941,2.4948,2659.2,2658.0,0.07522403]
[1723375524149,2.4948,2659.2,2657.9,2.35602529]
[1723375524301,0.24948,2659.1,2658.0,0.29299448]
[1723375524507,3.24948,2659.1,2658.0,0.29299448]
[1723375527112,3.24948,2659.1,2658.1,0.07523426]
[1723375527315,3.0,2659.1,2658.1,0.07523426]
[1723375527509,2.3225,2659.5,2658.2,0.05731798]
[1723375527716,2.3225,2659.5,2658.0,0.23560253]
[1723375527717,2.3225,2659.5,2658.3,0.07522375]
[1723375528091,2.3225,2659.5,2658.4,2.4845]
[1723375528210,3.235602,2659.8,2658.4,2.4845]
[1723375528211,3.235602,2659.8,2658.5,0.07521561]
[1723375528417,3.0,2659.8,2658.5,0.13243362]
[1723375528751,2.3225,2659.9,2658.5,0.13243362]
[1723375528752,5.3225,2659.9,2658.5,0.13243362]
[1723375528936,0.96225,2659.8,2658.5,0.96154871]
[1723375529154,9.6225,2660.6,2658.6,2.55970549]
[1723375529342,1.00148155,2660.5,2658.9,2.4845]
[1723375529536,2.3225,2660.6,2659.1,2.4845]
[1723375529722,2.3225,2660.6,2659.3,2.4845]
[1723375529924,2.3225,2660.6,2659.4,0.07518577]
[1723375530127,7.3,2661.0,2659.4,0.1317053]
[1723375530312,0.73,2660.9,2659.5,2.4845]
[1723375530511,2.3225,2661.0,2659.6,0.07517587]
[1723375530713,2.3225,2661.0,2659.7,2.4845]
[1723375531028,2.3225,2662.0,2659.8,0.13128238]
[1723375531330,2.3225,2662.0,2659.8,0.05611218]
[1723375531532,0.3758,2661.9,2659.8,0.05611218]
[1723375531717,2.3225,2661.8,2659.8,0.05611218]
[1723375532131,2.3225,2661.8,2659.9,0.07517412]
[1723375532837,2.3225,2661.8,2660.0,2.4845]
[1723375533034,0.55,2661.7,2660.1,0.07517011]
[1723375533269,0.28725,2661.6,2660.1,0.33113712]
[1723375533772,0.28725,2661.6,2660.2,3.09028904]
[1723375533920,0.28725,2661.6,2660.4,2.4845]
[1723375534127,2.3225,2661.8,2660.2,0.60578904]
[1723375534128,2.3225,2662.7,2660.6,2.4845]
[1723375534353,2.3225,2662.7,2660.7,0.07514773]
[1723375534629,2.3225,2662.7,2660.8,0.0751477]
[1723375534850,2.3225,2662.7,2660.8,0.13059832]
[1723375535031,0.27076327,2662.6,2660.8,0.13059832]
[1723375535238,0.27076327,2662.6,2660.9,2.4845]
[1723375535530,0.27076327,2662.6,2661.0,0.07514768]
[1723375535957,0.27076327,2662.6,2661.1,0.05535085]
[1723375536157,3.27076327,2662.6,2661.1,0.05535085]
[1723375536459,0.55932633,2662.5,2661.1,0.05535085]
[1723375536672,1.10932633,2662.5,2661.1,0.05535085]
[1723375537331,1.10932633,2662.5,2661.2,0.07514639]
[1723375537850,1.10932633,2662.5,2661.3,0.05513097]
[1723375538060,1.10932633,2662.5,2661.3,0.13027182]
[1723375538221,1.10932633,2662.5,2661.3,0.05513097]
[1723375538222,0.43800896,2662.4,2661.3,0.05513097]
[1723375538422,0.43800896,2662.4,2661.0,0.07514354]
[1723375538635,0.43800896,2662.4,2661.4,0.05509773]
[1723375538862,0.43800896,2662.4,2661.0,0.07514354]
[1723375539163,0.43800896,2662.4,2661.5,0.05506448]
[1723375539373,0.43800896,2662.4,2661.1,0.05519748]
[1723375539571,0.43800896,2662.4,2661.1,0.13034104]
[1723375539778,2.8725,2662.3,2661.6,0.05503124]
[1723375540068,3.3310509,2662.2,2660.9,2.4845]
[1723375540274,0.55,2662.1,2660.9,2.4845]
[1723375543537,3.3310509,2662.2,2661.0,0.0543247]
[1723375543737,0.55,2662.1,2661.0,0.0543247]
[1723375543957,0.55,2662.1,2661.0,0.30820717]
[1723375543958,0.38810509,2662.0,2661.0,0.30820717]
[1723375545038,0.38810509,2662.0,2661.0,0.0543247]
[1723375545371,3.3310509,2662.2,2661.1,2.4845]
[1723375545372,0.3310509,2662.2,2661.1,2.4845]
[1723375545534,2.3375,2663.1,2661.1,2.4845]
[1723375545739,2.3375,2663.1,2661.1,2.53873669]
[1723375546175,2.3375,2663.1,2661.3,2.4549]
[1723375546384,0.23375,2663.0,2661.5,2.4549]
[1723375546549,0.23375,2663.0,2661.6,0.07513045]
[1723375546873,0.23375,2663.0,2661.7,0.05403721]
[1723375547462,2.4367,2662.9,2661.7,0.05403721]
[1723375547687,0.267045,2662.8,2661.5,2.4549]
[1723375547977,3.267045,2662.8,2661.5,2.4549]
[1723375548674,2.4367,2662.6,2660.5,2.4549]
[1723375548878,0.29867,2662.5,2660.5,3.00039]
[1723375549039,0.55,2662.4,2660.6,2.50910228]
[1723375550950,2.4367,2662.3,2660.6,2.50910228]
[1723375551148,2.4367,2662.1,2660.6,2.50910228]
[1723375551350,5.4367,2662.1,2660.6,2.50910228]
[1723375551549,1.09367,2662.0,2660.6,2.50910228]
[1723375551754,4.09367,2662.0,2660.6,2.50910228]
[1723375552494,2.4367,2661.9,2660.6,2.4549]
[1723375552786,1.13904035,2661.8,2660.6,2.4549]
[1723375552940,0.65757404,2661.7,2660.7,0.05442085]
[1723375553271,0.55,2661.6,2660.6,2.4549]
[1723375556281,0.65757404,2661.7,2660.8,2.4549]
[1723375556445,0.65757404,2661.7,2660.7,0.12962003]
[1723375556446,0.58904035,2661.8,2660.9,0.07515475]
[1723375556786,2.4367,2662.4,2661.0,2.4549]
[1723375556959,1.02223893,2662.3,2661.0,2.4549]
[1723375558196,4.02223893,2662.3,2661.0,2.4549]
[1723375558695,1.02223893,2662.3,2661.2,2.4549]
[1723375558896,1.02223893,2662.3,2661.3,0.24549]
[1723375559201,1.02223893,2662.3,2661.3,0.05408987]
[1723375559488,1.02223893,2662.3,2661.4,2.4549]
[1723375562914,0.60381188,2663.1,2661.4,2.4549]
[1723375563266,0.015,2663.1,2661.6,2.4549]
[1723375563466,0.015,2663.1,2661.8,2.4549]
[1723375563667,0.015,2663.1,2662.0,2.4549]
[1723375564309,0.015,2663.1,2662.1,0.05338607]
[1723375565004,0.015,2663.1,2662.0,2.4549]
[1723375565968,0.015,2663.1,2662.1,0.07512061]
[1723375566166,0.015,2663.1,2662.1,0.12850636]
[1723375566474,0.015,2663.1,2662.2,2.4748]
[1723375566664,0.015,2663.1,2662.2,2.52815284]
[1723375568016,0.015,2663.1,2662.4,2.4748]
[1723375568167,0.015,2663.1,2662.5,0.07510941]
[1723375568488,0.015,2663.1,2662.6,0.05305945]
[1723375568695,0.015,2663.1,2662.5,0.24748]
[1723375568909,0.015,2663.1,2662.8,2.4748]
[1723375569718,0.015,2663.1,2662.9,0.05295252]
[1723375569916,0.015,2663.1,2662.9,0.12804845]
[1723375570065,0.015,2663.1,2663.0,2.4748]
[1723375570267,0.015,2663.1,2663.0,2.52761356]
[1723375570463,0.015,2663.1,2663.0,2.78037492]
[1723375570910,0.015,2663.1,2663.0,0.05281356]
[1723375571287,0.015,2663.1,2662.6,2.4748]
[1723375571588,0.015,2663.1,2663.0,0.05268595]
[1723375572603,0.015,2663.1,2663.0,0.12778236]
[1723375572807,0.015,2663.1,2663.0,0.05268595]
[1723375574179,0.015,2663.1,2663.0,2.78023455]
[1723375574399,0.015,2663.1,2663.0,2.52748595]
[1723375575472,0.015,2663.1,2663.0,3.07748595]
[1723375576311,0.015,2663.1,2663.0,2.52748595]
[1723375579698,2.2949,2664.1,2663.0,2.52748595]
[1723375579934,0.52949,2664.0,2663.0,2.4748]
[1723375580241,3.52949,2664.0,2663.1,0.05208757]
[1723375580424,3.0,2664.0,2663.1,0.05208757]
[1723375580657,2.2949,2664.1,2663.1,0.05208757]
[1723375581447,3.0,2664.2,2663.1,0.05208757]
[1723375581448,3.0,2664.2,2663.1,0.12717807]
[1723375581596,4.03,2664.2,2663.1,0.31228538]
[1723375582031,4.03,2664.2,2663.1,0.3873689]
[1723375582238,7.3,2664.3,2663.2,0.07508352]
[1723375582434,7.3,2664.3,2663.3,2.4748]
[1723375582635,7.3,2664.3,2663.4,0.07507768]
[1723375583159,2.2949,2664.7,2663.4,0.07507768]
[1723375583437,0.27285385,2664.6,2663.5,2.4748]
[1723375583639,0.27285385,2664.6,2663.6,0.0750702]
[1723375583808,0.27285385,2664.6,2663.6,0.12699178]
[1723375584149,0.27285385,2664.6,2663.6,0.05192158]
[1723375584330,0.70649237,2664.6,2663.6,0.05192158]
[1723375584545,0.30013924,2664.5,2663.6,0.05192158]
[1723375584747,0.73377776,2664.5,2663.6,0.05192158]
[1723375584947,0.73377776,2664.5,2663.2,2.4748]
[1723375585468,2.2949,2664.4,2662.3,2.4748]
[1723375585755,2.72853852,2664.3,2662.4,0.86688288]
[1723375585918,2.2737,2664.1,2662.4,0.05198116]
[1723375586117,2.2737,2663.9,2662.3,2.4748]
[1723375586435,5.2737,2663.9,2662.4,0.29946116]
[1723375586633,0.55,2663.8,2662.5,0.07510579]
[1723375586831,3.605107,2663.8,2662.6,2.3455]
[1723375587152,3.0,2663.8,2662.8,2.3455]
[1723375587347,0.22737,2664.0,2662.9,0.07508943]
[1723375587564,2.2737,2664.2,2662.9,0.12698469]
[1723375587853,3.0,2664.1,2662.9,0.07508943]
[1723375588053,3.0,2664.1,2663.0,2.3455]
[1723375588258,3.0,2664.1,2662.9,0.07508943]
[1723375588259,2.2737,2664.5,2663.2,2.3455]
[1723375588470,2.2737,2664.5,2663.3,0.07508073]
[1723375588632,2.2737,2664.8,2663.4,2.3455]
[1723375588960,0.22737,2664.7,2663.6,2.3455]
[1723375589164,0.22737,2664.7,2663.7,0.07506997]
[1723375589377,0.22737,2664.7,2663.7,0.12666319]
[1723375589669,0.22737,2664.7,2663.8,0.07506885]
[1723375589821,0.22737,2664.7,2663.9,0.05128637]
[1723375590319,0.22737,2664.7,2663.6,2.3455]
[1723375590519,0.22737,2664.7,2664.0,0.05125319]
[1723375590728,0.22737,2664.7,2663.6,2.3455]
[1723375590931,0.22737,2664.7,2664.1,0.05122001]
[1723375591155,0.22737,2664.7,2663.6,2.3455]
[1723375591360,0.22737,2664.7,2664.2,0.05118683]
[1723375591654,0.22737,2664.7,2664.3,0.05115365]
[1723375591857,3.22737,2664.7,2664.3,0.05115365]
[1723375592068,0.550107,2664.6,2663.6,2.3455]
[1723375592274,0.550107,2664.6,2663.7,0.12642206]
[1723375592576,0.550107,2664.6,2663.8,0.07506931]
[1723375592749,3.0,2664.7,2663.9,2.3455]
[1723375592950,5.2737,2665.1,2664.0,0.07506422]
[1723375593145,0.57073385,2665.0,2664.0,0.07506422]
[1723375593459,3.57073385,2665.0,2664.0,0.07506422]
[1723375594049,0.57073385,2665.0,2664.0,0.07506422]
[1723375594388,2.2737,2665.1,2664.1,0.05117266]
[1723375595580,0.55,2665.0,2664.1,0.05117266]
[1723375596073,3.0,2665.0,2664.0,0.07506921]
[1723375596279,0.82737,2665.0,2664.1,0.05097598]
[1723375596481,3.0,2665.0,2664.1,0.12603402]
[1723375596640,3.0,2665.0,2664.2,2.3455]
[1723375596835,3.0,2665.2,2664.3,0.12595826]
[1723375597068,2.9987418,2665.2,2664.3,0.07505592]
[1723375597263,7.3,2665.7,2664.4,2.3455]
[1723375597462,7.3,2665.7,2664.6,2.3455]
[1723375597677,7.3,2665.7,2664.7,0.07504568]
[1723375598244,0.015,2666.2,2664.8,2.3455]
[1723375598439,0.015,2666.2,2664.9,0.05066328]
[1723375598440,2.2887,2666.2,2664.9,0.05066328]
[1723375598638,2.2887,2666.2,2664.8,2.3455]
[1723375598876,0.22887,2666.1,2664.9,0.23455]
[1723375599039,0.22887,2666.1,2664.8,2.3455]
[1723375599392,2.2737,2665.9,2664.8,2.3455]
[1723375599594,2.2737,2665.9,2663.5,5.67421723]
[1723375599595,2.2737,2665.7,2663.7,2.3455]
[1723375599892,0.99941435,2665.6,2663.8,0.05084979]
[1723375600077,0.99941435,2665.6,2663.8,2.39634979]
[1723375600275,0.62731143,2665.5,2664.0,2.3455]
[1723375600590,0.62731143,2665.5,2664.2,2.3455]
[1723375600790,3.55,2665.6,2664.3,2.42055035]
[1723375600996,3.55,2665.6,2664.3,2.471267]
[1723375600997,3.0,2665.6,2664.3,2.471267]
[1723375601168,0.39274405,2666.1,2664.4,2.3455]
[1723375601367,2.2737,2666.0,2664.4,2.5926267]
[1723375601690,2.2737,2665.8,2664.4,2.3455]
[1723375601893,0.44941435,2665.7,2664.4,2.3455]
[1723375602100,3.44941435,2665.7,2664.5,0.05058478]
[1723375602399,0.27231144,2665.6,2664.5,0.05058478]
[1723375602582,0.55,2665.5,2664.5,0.05058478]
[1723375603779,2.2737,2665.4,2664.5,0.05058478]
[1723375603982,0.55,2665.3,2664.5,0.05058478]
[1723375604184,0.58237,2665.2,2663.6,2.3455]
[1723375604496,3.55,2665.3,2663.7,0.05098855]
[1723375604702,3.55,2665.3,2663.6,2.3455]
[1723375604703,2.2737,2664.9,2663.6,2.3455]
[1723375604866,2.2737,2664.9,2663.7,0.05098855]
[1723375605071,1.50737,2664.8,2663.6,2.3455]
[1723375605273,4.50737,2664.8,2663.6,2.3455]
[1723375606094,4.50737,2664.8,2663.7,0.07507715]
[1723375606299,4.50737,2664.8,2663.6,2.3455]
[1723375606481,0.678107,2664.7,2663.6,2.3455]
[1723375607168,0.55,2664.6,2663.6,2.3455]
[1723375607999,3.55,2664.6,2663.6,2.3455]
[1723375608221,0.678107,2664.7,2663.6,2.3455]
[1723375608360,0.55,2664.6,2663.6,2.3455]
[1723375608562,0.55,2664.6,2663.6,2.58005]
[1723375608861,2.79781435,2664.6,2662.6,2.4029]
[1723375609198,3.99941435,2664.5,2662.6,2.4029]
[1723375609362,2.3484,2664.4,2662.6,2.4029]
[1723375609563,1.63419579,2664.3,2662.7,0.29196383]
[1723375609765,0.99941435,2664.3,2662.7,0.29196383]
[1723375609958,3.99941435,2664.3,2662.7,0.29196383]
[1723375610160,3.99941435,2664.3,2661.6,0.1]
[1723375610161,0.1,2663.7,2661.3,7.35]
[1723375610471,0.1,2663.6,2661.3,7.35]
[1723375610672,0.1,2663.6,2661.4,0.05064206]
[1723375610897,0.1,2663.7,2661.4,0.05064206]
[1723375611406,0.1,2663.6,2661.4,0.05064206]
[1723375611556,0.1,2663.4,2661.5,0.55]
[1723375611762,0.1,2663.2,2661.4,0.05064206]
[1723375612098,0.1,2663.5,2661.5,0.04900489]
[1723375612317,0.1,2663.4,2661.0,42.7258]
[1723375612592,0.1,2663.4,2661.1,0.04914518]
[1723375612798,0.1,2663.0,2661.1,0.04914518]
[1723375613305,0.1,2663.0,2660.6,11.1]
[1723375613306,0.2,2662.8,2661.2,2.4029]
[1723375613462,0.2,2662.8,2661.4,2.4029]
[1723375614527,0.1,2662.5,2661.4,2.4029]
[1723375615031,2.4484,2662.3,2661.4,2.4029]
[1723375615885,2.3484,2662.3,2661.5,0.07513711]
[1723375616087,0.23484,2662.2,2661.5,0.07513711]
[1723375616325,0.1,2662.3,2661.5,0.07513711]
[1723375616685,3.0,2662.5,2661.5,0.07513711]
[1723375616888,0.2,2662.5,2661.5,0.07513711]
[1723375617087,3.2,2662.5,2661.5,0.07513711]
[1723375617291,0.55484,2662.4,2661.5,0.07513711]
[1723375618532,0.1,2662.5,2661.5,0.07513711]
[1723375618732,0.1,2662.7,2661.5,2.47802995]
[1723375618904,0.1,2662.5,2661.5,2.47802995]
[1723375619113,0.1,2662.5,2661.6,0.05036816]
[1723375619427,0.34484,2662.5,2661.6,0.05036816]
[1723375619933,0.24484,2662.5,2661.6,0.12549378]
[1723375620102,0.1,2662.7,2661.6,0.12549378]
[1723375620433,0.1,2662.7,2661.6,0.07512562]
[1723375620806,3.0,2662.8,2661.6,0.07512562]
[1723375620996,0.1,2662.9,2661.7,2.9529]
[1723375621191,2.3484,2663.2,2661.7,2.9529]
[1723375621192,2.3484,2663.2,2661.9,2.4029]
[1723375621391,0.1,2663.3,2661.9,2.4029]
[1723375621696,0.1,2663.1,2662.0,0.12532246]
[1723375621897,0.1,2663.1,2662.0,0.32505519]
[1723375622319,0.1,2663.1,2662.1,0.07511396]
[1723375622515,0.1,2663.1,2662.2,0.05013956]
[1723375623334,0.1,2663.1,2661.9,2.4029]
[1723375623335,0.1,2662.7,2662.3,0.05010634]
[1723375623643,0.1,2662.7,2661.6,2.4029]
[1723375623644,0.34484,2662.7,2661.6,2.4029]
[1723375623794,0.1,2662.3,2660.1,35.0]
[1723375623997,2.3484,2662.3,2661.7,0.05030573]
[1723375624194,3.1,2662.5,2661.3,2.4029]
[1723375624391,3.499484,2662.5,2661.8,0.05027249]
[1723375624695,3.499484,2662.5,2661.3,2.4029]
[1723375625816,3.499484,2662.5,2661.4,0.05040546]
[1723375626020,0.5847884,2662.4,2661.4,0.29573601]
[1723375627208,3.0,2662.5,2661.4,0.29573601]
[1723375627398,0.1,2662.8,2661.5,4.1686]
[1723375627835,0.1,2662.8,2661.7,4.1686]
[1723375628001,0.1,2663.0,2661.7,4.1686]
[1723375628200,0.1,2663.0,2661.8,0.47206607]
[1723375628629,0.1,2663.0,2661.8,0.42188478]
[1723375628831,0.1,2663.0,2662.0,4.1686]
[1723375628999,0.1,2663.0,2662.1,0.07511429]
[1723375631335,3.0,2663.1,2662.1,0.07511429]
[1723375631537,0.1,2663.5,2662.2,4.1686]
[1723375631745,0.1,2663.1,2662.2,4.1686]
[1723375632336,0.1,2663.1,2662.3,0.05001514]
[1723375632558,0.1,2663.1,2662.2,4.1686]
[1723375632707,3.50198,2663.1,2662.2,4.1686]
[1723375634204,3.40198,2663.1,2662.2,4.1686]
[1723375634406,3.0,2663.2,2662.2,4.1686]
[1723375635547,3.0,2663.2,2662.4,4.1686]
[1723375635755,3.0,2663.2,2662.5,0.07509935]
[1723375636749,3.1,2663.5,2662.6,0.07509939]
[1723375636918,5.397,2663.5,2662.7,4.1686]